fUSD/lending_fUSD_20240623
["ID","MTS","AMOUNT","RATE_DAILY","PERIOD"]
[330199939,1719126646444,-2506.31174187,0.000204,4]
[330199940,1719126646455,-530.6,0.000204,4]
[330199941,1719126646466,-534.79419597,0.000204,4]
[330199942,1719126646477,-4869.26687397,0.000204,4]
[330199943,1719126848826,328.40415863,0.00012939,2]
[330199955,1719127832420,-293.43812873,0.00013989,2]
[330199956,1719127832432,-594.37229664,0.00013989,2]
[330199957,1719127832442,-529.61139599,0.00014907,2]
[330199958,1719127832451,-1668.01041287,0.00015337,2]
[330199959,1719127832463,-335.86776513,0.00015337,2]
[330199960,1719127832472,-420.02838868,0.00015478,2]
[330199961,1719127832482,-233.13714894,0.00015478,2]
[330199962,1719127832491,-166.39715357,0.00015583,2]
[330199963,1719127832500,-300.0,0.00015682,2]
[330199964,1719127832510,-150.0,0.00015682,2]
[330199965,1719127832519,-2326.69919271,0.00015683,2]
[330199966,1719127832532,-287.89476307,0.00015683,2]
[330199967,1719127832547,-3706.62855411,0.00015683,2]
[330199968,1719127832596,-5136.10633996,0.00015683,2]
[330199971,1719127838220,-580.4,0.00015247,2]
[330199974,1719127838417,-1423.478178,0.00015247,2]
[330199975,1719127838427,-1787.31973208,0.00015683,2]
[330199976,1719127838439,-2603.10643675,0.00015683,2]
[330199977,1719127838451,-1592.53420064,0.00015683,2]
[330199978,1719127838463,-600.0,0.00015683,2]
[330199979,1719127838477,-3813.73549989,0.00015683,2]
[330199980,1719127838563,-127989.28557014,0.00015683,2]
[330199981,1719127838574,-149843.31028935,0.00015683,2]
[330199982,1719127838583,-166.39715349,0.00016248,2]
[330199983,1719127838593,-202.517411,0.000164,2]
[330199984,1719127838603,-202.517411,0.000164,2]
[330199985,1719127838612,-457.56,0.00016906,2]
[330199986,1719127838622,-166.39715349,0.00016912,2]
[330199987,1719127838632,-420.0,0.00017152,2]
[330199988,1719127838642,-748.0,0.000172,2]
[330199989,1719127838652,-1662.71,0.0001726,2]
[330199990,1719127838662,-2000.0,0.00017364,3]
[330199991,1719127838671,-1937.04,0.00017396,2]
[330199992,1719127838681,-166.39715349,0.00017577,2]
[330199993,1719127838691,-1086.67500979,0.00017774,2]
[330199994,1719127838700,-250.0,0.00017978,2]
[330199995,1719127838709,-166.39715349,0.00018242,2]
[330199996,1719127838719,-200.0,0.000184,2]
[330199997,1719127838728,-200.0,0.000184,2]
[330199998,1719127838737,-500.0,0.00018517,3]
[330199999,1719127838749,-757.68,0.00018745,2]
[330200000,1719127838758,-587.0,0.00018758,2]
[330200001,1719127838767,-166.39715349,0.00018906,2]
[330200002,1719127838777,-163545.03898885,0.00019,2]
[330200003,1719127838787,-457.56,0.0001917,2]
[330200004,1719127838797,-1000.0,0.0001936,2]
[330200005,1719127838807,-167.0,0.00019372,2]
[330200006,1719127838817,-166.39715349,0.00019571,2]
[330200007,1719127838826,-208.2521774,0.00019923,2]
[330200008,1719127838836,-268.44914009,0.00019926,2]
[330200009,1719127838846,-2491.01847886,0.0002,2]
[330200010,1719127838856,-384.09870792,0.0002,2]
[330200011,1719127838866,-415.49090939,0.00020105,2]
[330200012,1719127838875,-166.39715349,0.00020235,2]
[330200013,1719127838886,-1086.67500979,0.00020299,3]
[330200014,1719127838896,-1222.0193,0.000203,2]
[330200015,1719127838906,-5934.27083806,0.000203,2]
[330200016,1719127839191,-215.0,0.000203,2]
[330200017,1719127839202,-1000.0,0.000203,2]
[330200018,1719127839213,-10000.0,0.000203,2]
[330200019,1719127839223,-174.56450957,0.000203,2]
[330200020,1719127839232,-441.8894,0.000203,2]
[330200021,1719127839242,-208.14980787,0.000203,2]
[330200022,1719127839253,-878.65135434,0.000203,2]
[330200023,1719127839264,-6063.38073714,0.000203,2]
[330200024,1719127839278,-219.9,0.00020301,3]
[330200025,1719127839287,-2988.04559274,0.00020352,2]
[330200026,1719127839297,-475.6978813,0.0002039,2]
[330200027,1719127839308,-475.6978813,0.0002039,2]
[330200028,1719127839318,-475.6978813,0.0002039,2]
[330200029,1719127839328,-1493.19763925,0.00020394,2]
[330200030,1719127839338,-1147.5276501,0.00020395,2]
[330200031,1719127839349,-4442.437128,0.00020395,2]
[330200032,1719127839359,-128405.8203275,0.00020395,2]
[330200033,1719127839369,-2258.474509,0.00020395,2]
[330200034,1719127839379,-151.0,0.00020395,2]
[330200035,1719127839389,-151.0,0.00020395,2]
[330200036,1719127839398,-1015.042866,0.00020395,2]
[330200037,1719127839408,-151.0,0.00020395,2]
[330200038,1719127839418,-1015.042866,0.00020395,2]
[330200039,1719127839427,-151.0,0.00020395,2]
[330200040,1719127839437,-12761.898412,0.00020395,2]
[330200041,1719127839447,-326.81521286,0.00020397,2]
[330200042,1719127839457,-500.0,0.00020397,2]
[330200043,1719127839466,-209.15905144,0.00020398,2]
[330200044,1719127839476,-5910.04510539,0.00020398,2]
[330200045,1719127839486,-232175.65520037,0.00020399,2]
[330200046,1719127839495,-223.144825,0.00020399,2]
[330200047,1719127839505,-151.0,0.00020399,2]
[330200048,1719127839516,-1015.042866,0.00020399,2]
[330200049,1719127839526,-151.0,0.00020399,2]
[330200050,1719127839536,-1015.042866,0.00020399,2]
[330200051,1719127839546,-151.0,0.00020399,2]
[330200052,1719127839556,-507.54747,0.00020399,2]
[330200053,1719127839566,-692546.78547363,0.00020399,2]
[330200054,1719127839576,-552.0,0.000204,2]
[330200055,1719127839586,-80367.20572947,0.000204,2]
[330200056,1719127839596,-143045.97079621,0.000204,7]
[330200057,1719127839609,-771.65526251,0.000204,7]
[330200058,1719127839638,-7592.06373416,0.000204,7]
[330200059,1719127839652,-18118.44122349,0.000204,7]
[330200062,1719127840508,-5484.19,0.000204,7]
[330200066,1719127840724,-162.53122664,0.00016148,2]
[330200067,1719127840734,-4406.46887546,0.000204,7]
[330200068,1719127840944,-27353.33808669,0.000204,7]
[330200069,1719127840956,-1583.2356119,0.000204,7]
[330200070,1719127840967,-1107.05229675,0.000204,7]
[330200082,1719127843826,-151.0,0.00020395,2]
[330200085,1719127843836,-174.961526,0.00020399,2]
[330200086,1719127843845,-691.7214758,0.000204,7]
[330200087,1719127843857,-4053.55604223,0.000204,7]
[330200088,1719127844281,-460.32635449,0.000204,7]
[330200089,1719127844314,-29694.67124406,0.000204,7]
[330200090,1719127844326,-498.9688774,0.000204,7]
[330200091,1719127844337,-307.74597549,0.000204,7]
[330200092,1719127844349,-4373.35573141,0.000204,7]
[330200093,1719127844358,-1659629.5894543,0.000204,4]
[330200096,1719127846513,-207.386672,0.00020395,2]
[330200097,1719127846524,-207.386672,0.00020399,2]
[330200098,1719127846533,-4467.77001346,0.000204,4]
[330200100,1719128088280,500.0,0.00012939,2]
[330200101,1719128088840,836.0,0.00012939,2]
[330200104,1719128364859,-529.61139599,0.0001383,2]
[330200105,1719128364880,-219.65,0.0001389,3]
[330200106,1719128364903,-300.0,0.00013999,2]
[330200107,1719128364925,-150.0,0.00013999,2]
[330200108,1719128364951,-8800.73860401,0.00014,2]
[330200109,1719128365689,-10000.0,0.00014,2]
[330200110,1719128366069,-10000.0,0.00014,2]
[330200111,1719128366474,-10000.0,0.00014,2]
[330200112,1719128366833,-10000.0,0.00014,2]
[330200113,1719128367236,-10000.0,0.00014,2]
[330200114,1719128367588,-10000.0,0.00014,2]
[330200115,1719128367934,-10000.0,0.00014,2]
[330200116,1719128368296,-10000.0,0.00014,2]
[330200117,1719128368643,-10000.0,0.00014,2]
[330200118,1719128372488,-10000.0,0.00014,2]
[330200119,1719128372799,-10000.0,0.00014,2]
[330200120,1719128373185,-10000.0,0.00014,2]
[330200121,1719128373729,-10000.0,0.00014,2]
[330200122,1719128377325,-10000.0,0.00014,2]
[330200123,1719128400515,-10000.0,0.00014,2]
[330200124,1719128401050,-10000.0,0.00014,2]
[330200125,1719128401549,-10000.0,0.00014,2]
[330200126,1719128403199,151.87810259,0.00012939,2]
[330200127,1719128411141,-300.0,0.00013999,2]
[330200128,1719128411169,-9700.0,0.00014,2]
[330200129,1719128411852,-10000.0,0.00014,2]
[330200130,1719128412449,-10000.0,0.00014,2]
[330200131,1719128413068,-10000.0,0.00014,2]
[330200132,1719128414541,-10000.0,0.00014,2]
[330200133,1719128444377,-10000.0,0.00014,2]
[330200134,1719128445016,-10000.0,0.00014,2]
[330200135,1719128445639,-10000.0,0.00014,2]
[330200136,1719128446290,-10000.0,0.00014,2]
[330200137,1719128457585,-433.6817,0.00014,2]
[330200139,1719129032292,-304.98751847,0.00013833,2]
[330200141,1719129032301,-330.02430778,0.00013932,2]
[330200142,1719129032311,-339.39026201,0.00013988,2]
[330200144,1719129032321,-1029.35090844,0.00013999,2]
[330200146,1719129032615,-4.603e-05,0.00013999,2]
[330200147,1719129032627,-3424.59309658,0.00013999,2]
[330200148,1719129032636,-1358.24931333,0.00014,2]
[330200149,1719129032648,-2267.92727332,0.00014,2]
[330200152,1719129032659,-517.9614323,0.00014,2]
[330200153,1719129032671,-820.87408869,0.00014,2]
[330200154,1719129032682,-365.33829994,0.00014,2]
[330200155,1719129032694,-2109.43741355,0.00014,2]
[330200156,1719129032707,-2164.19450103,0.00014,2]
[330200157,1719129032719,-812.88099933,0.00014,2]
[330200158,1719129032734,-4462.52367967,0.00014,2]
[330200159,1719129032750,-1768.47672408,0.00014,2]
[330200160,1719129032762,-6728.94505261,0.00014,2]
[330200161,1719129032774,-1584.73033839,0.00014,2]
[330200162,1719129032786,-3054.54400321,0.00014,2]
[330200163,1719129032811,-74633.08461643,0.00014,2]
[330200164,1719129032824,-637356.68728034,0.00014,2]
[330200165,1719129032837,-325.09234905,0.00014,2]
[330200166,1719129032849,-1094.6407865,0.00014,2]
[330200167,1719129032862,-1325.8073129,0.00014,2]
[330200168,1719129032875,-919.32000046,0.00014,2]
[330200169,1719129032887,-630.85,0.00014,2]
[330200170,1719129032899,-404.0000001,0.00014,2]
[330200171,1719129032912,-326.34,0.00014,2]
[330200172,1719129032924,-420.0,0.00014,2]
[330200173,1719129032940,-54621.24033908,0.00014,2]
[330200174,1719129032952,-935.93930894,0.00014,2]
[330200175,1719129032965,-9109.98551208,0.00014,2]
[330200176,1719129032980,-25888.81573891,0.00014,2]
[330200177,1719129032994,-668.51699551,0.00014,2]
[330200178,1719129038513,-911.62683173,0.00014,2]
[330200179,1719129038526,-303.67249105,0.00014,2]
[330200180,1719129038546,-6039.44819582,0.00014,2]
[330200181,1719129038557,-2183.16426548,0.00014,2]
[330200182,1719129038569,-467.988146,0.00014,2]
[330200183,1719129038586,-399.56911126,0.00014,2]
[330200184,1719129038598,-34233.58916488,0.00014,2]
[330200185,1719129038614,-1592.65686539,0.00014,2]
[330200186,1719129038625,-5080.1458687,0.00014,2]
[330200187,1719129038641,-6836.84294055,0.00014,2]
[330200192,1719129040444,-1356.0,0.00014,2]
[330200193,1719129040606,-2107.86426795,0.00014,2]
[330200194,1719129040766,-439.015,0.00014,2]
[330200195,1719129040779,-8989.02131788,0.00014,2]
[330200196,1719129040792,-8947.21879473,0.00014,2]
[330200197,1719129040804,-8943.78386462,0.00014,2]
[330200198,1719129040815,-9077.54866152,0.00014,2]
[330200199,1719129040828,-8943.84023489,0.00014,2]
[330200218,1719129043386,-623.25,0.00014,2]
[330200219,1719129043441,-659.94278815,0.00014,2]
[330200220,1719129043549,-374117.44833421,0.00014,2]
[330200221,1719129043561,-953.6360013,0.00014,2]
[330200222,1719129043603,-1000.0,0.00014,2]
[330200223,1719129043615,-854.210001,0.00014,2]
[330200224,1719129043658,-8479.63585047,0.00014,2]
[330200225,1719129043671,-596.02446566,0.00014,2]
[330200227,1719129046419,-532562.08653415,0.00014,2]
[330200228,1719129046478,-1825.8570438,0.00014,2]
[330200229,1719129046490,-6067.5646702,0.00014,2]
[330200230,1719129046645,-3902.39236923,0.00014,2]
[330200231,1719129046703,-5877.48859263,0.00014,2]
[330200232,1719129581413,157.19,0.00011074,2]
[330200233,1719129651407,290.31762553,0.00011074,2]
[330200234,1719129652279,263.28070068,0.00011074,2]
[330200235,1719129665647,180.98668083,0.00011074,2]
[330200236,1719129672791,20301.89292845,0.00011074,2]
[330200237,1719129675713,248.80515963,0.00011074,2]
[330200238,1719129675936,6064.94714286,0.00011074,2]
[330200239,1719129687693,20301.89292845,0.00011074,2]
[330200240,1719129742281,263.28070068,0.00011074,2]
[330200241,1719129750398,290.31762553,0.00011074,2]
[330200242,1719129759651,180.98668083,0.00011074,2]
[330200243,1719129799683,20301.89292845,0.00011074,2]
[330200244,1719129844277,263.28070068,0.00011074,2]
[330200245,1719129849416,290.22959317,0.00011074,2]
[330200246,1719129850915,243.45553123,0.00011074,2]
[330200247,1719129885678,7695.13509577,0.00011074,2]
[330200248,1719129911784,1627.12,0.00012931,2]
[330200249,1719129919007,703.69,0.00012973,2]
[330200250,1719129931710,941.36,0.00012977,2]
[330200251,1719129937350,382.58,0.00012977,2]
[330200252,1719129938832,6079.2,0.00012977,2]
[330200253,1719129944391,263.59945212,0.00011074,2]
[330200254,1719130052184,250.0,0.000128,2]
[330200255,1719130091091,1000.0,0.00012797,2]
[330200256,1719130122888,699.24,0.00010835,2]
[330200257,1719130203357,150.0,0.00010835,2]
[330200258,1719130203549,150.0,0.00010835,2]
[330200259,1719130203906,150.0,0.00010835,2]
[330200260,1719130203964,150.0,0.00010835,2]
[330200261,1719130204123,150.0,0.00010835,2]
[330200262,1719130204292,297.17406985,0.00010835,2]
[330200263,1719130214565,267.10146818,0.00012733,2]
[330200269,1719130231516,-152.49375924,0.0001304,2]
[330200270,1719130231526,-189.1947708,0.00013099,2]
[330200271,1719130231542,-510.0452292,0.00013099,2]
[330200272,1719130231552,-387.72236814,0.00013133,2]
[330200273,1719130231562,-519.92612783,0.00013139,2]
[330200274,1719130231571,-2154.75,0.0001314,2]
[330200275,1719130231580,-748.69890931,0.00013172,2]
[330200276,1719130231592,-8372.49109069,0.00013172,2]
[330200277,1719130231602,-1452.87,0.00013224,2]
[330200278,1719130231611,-2060.0,0.00013274,2]
[330200279,1719130231621,-159.25862797,0.00013323,2]
[330200280,1719130231630,-1962.21231905,0.00013324,2]
[330200281,1719130231639,-605.6,0.00013324,2]
[330200282,1719130231649,-533.27,0.00013325,2]
[330200283,1719130231658,-9999.99,0.00013325,2]
[330200284,1719130231667,-779.59,0.00013325,2]
[330200285,1719130231677,-360.49,0.00013325,2]
[330200286,1719130231686,-1012.2,0.00013332,2]
[330200287,1719130231696,-4451.50873967,0.00013332,2]
[330200288,1719130231705,-339.48080702,0.00013352,2]
[330200289,1719130231717,-250.33780553,0.00013352,2]
[330200290,1719130231730,-3399.24138745,0.00013352,2]
[330200291,1719130231739,-499.99,0.00013352,2]
[330200292,1719130231748,-71.83885255,0.0001342,2]
[330200293,1719130231760,-1538.13114745,0.0001342,2]
[330200294,1719130231770,-250.0,0.0001351,2]
[330200295,1719130231780,-500.0,0.00013663,2]
[330200296,1719130231790,-6122.23,0.00013699,2]
[330200297,1719130231800,-344.62,0.00013699,2]
[330200298,1719130231810,-777.81,0.00013699,2]
[330200299,1719130231820,-613.47,0.00013699,2]
[330200300,1719130231829,-71.24546283,0.00013699,2]
[330200301,1719130231853,-128.75453717,0.00013699,2]
[330200302,1719130231863,-200.0,0.000137,5]
[330200303,1719130231873,-34.84546283,0.000137,2]
[330200304,1719130231888,-384.38674592,0.000137,2]
[330200305,1719130231898,-88.53896678,0.000138,5]
[330200306,1719130231910,-411.46103322,0.000138,5]
[330200307,1719130231920,-217.614,0.00013811,2]
[330200308,1719130231929,-383.3117566,0.00013861,2]
[330200309,1719130231938,-171.56244532,0.000139,2]
[330200310,1719130231948,-159.25862796,0.000139,2]
[330200311,1719130231957,-222.77532797,0.000139,2]
[330200313,1719130231967,-700.0,0.000139,5]
[330200314,1719130231976,-160.84429797,0.000139,2]
[330200315,1719130231985,-1096.58488851,0.000139,2]
[330200316,1719130231996,-760.55939495,0.000139,2]
[330200317,1719130232008,-6958.86832065,0.000139,2]
[330200318,1719130232018,-210.93790146,0.000139,2]
[330200319,1719130232029,-5378.09909018,0.00013911,2]
[330200320,1719130232041,-1756.39731668,0.00013911,2]
[330200321,1719130232052,-179.38098978,0.00013911,2]
[330200322,1719130232061,-939.37,0.0001399,2]
[330200323,1719130232072,-413.39,0.0001399,3]
[330200324,1719130232082,-206.69,0.0001399,3]
[330200325,1719130232093,-172.24,0.0001399,3]
[330200326,1719130232104,-516.76,0.0001399,3]
[330200327,1719130232114,-260.21570865,0.0001399,2]
[330200328,1719130232123,-8537.37866996,0.00014,2]
[330200329,1719130232135,-1072.14837001,0.00014,2]
[330200330,1719130232149,-9696.37754878,0.00014,2]
[330200331,1719130232161,-570.09,0.00014,2]
[330200335,1719130237514,-887.81042537,0.00013232,2]
[330200336,1719130237524,-101761.12165949,0.00014,2]
[330200337,1719130237536,-573.2828905,0.00014,2]
[330200338,1719130237548,-10858.90753303,0.00014,2]
[330200339,1719130237580,-672.57,0.00014,2]
[330200340,1719130237592,-14181.69517129,0.00014,2]
[330200341,1719130237603,-4061.01472979,0.00014,2]
[330200342,1719130237696,-603.45575644,0.00014,2]
[330200343,1719130237709,-910.60655848,0.00014,2]
[330200344,1719130237722,-9881.99222486,0.00014,2]
[330200345,1719130237733,-7768.1384,0.00014,2]
[330200346,1719130237745,-7146.2938,0.00014,2]
[330200347,1719130237756,-18261.65070178,0.00014,2]
[330200348,1719130237775,-10386.09884792,0.00014,2]
[330200349,1719130237786,-822.49017547,0.00014,2]
[330200350,1719130237822,-1062.99965272,0.00014,2]
[330200351,1719130237834,-399.70833916,0.00014,2]
[330200352,1719130237845,-358.33485164,0.00014,2]
[330200354,1719130239680,-5601.66310422,0.00014,2]
[330200355,1719130239740,-1568.29552831,0.00014,2]
[330200356,1719130239803,-870.60999909,0.00014,2]
[330200357,1719130239918,-16244.60617834,0.00014,2]
[330200358,1719130239931,-732.2176037,0.00014,2]
[330200359,1719130239944,-404.11099942,0.00014,2]
[330200360,1719130240167,-64117.86595238,0.00014,2]
[330200361,1719130240179,-1081.85075627,0.00014,2]
[330200362,1719130240198,-1163.68068873,0.00014,2]
[330200374,1719130242733,-925.50594997,0.00014,2]
[330200375,1719130242745,-427.149998,0.00014,2]
[330200376,1719130242756,-1502.81579274,0.00014,2]
[330200377,1719130242768,-257.91508309,0.00014,2]
[330200378,1719130242792,-256.88818013,0.00014,2]
[330200399,1719130804268,195.21,0.00010959,2]
[330200400,1719130814746,162.67,0.00010959,2]
[330200401,1719130825234,813.38,0.00010959,2]
[330200402,1719130883603,692546.78547363,0.00012299,2]
[330200403,1719131331128,692546.78547363,0.00012299,2]
[330200404,1719131361123,387770.96138518,0.00012299,2]
[330200405,1719131368907,-25250.0,0.00012299,2]
[330200406,1719131374169,-2871.48515536,0.00012299,2]
[330200407,1719131383649,-55000.0,0.00012299,2]
[330200408,1719131409140,48675.9205,0.00011799,2]
[330200409,1719131409165,3242.0,0.00011799,2]
[330200410,1719131409199,10000.0,0.00011799,2]
[330200411,1719131409226,206487.0,0.00011799,2]
[330200421,1719131431738,-2000.0,0.00011799,2]
[330200422,1719131431760,-950.90717399,0.00011799,2]
[330200423,1719131431784,-2952.10602153,0.00011799,2]
[330200424,1719131431885,-625.3983,0.00011799,2]
[330200430,1719131438081,-33457.13714415,0.00011799,2]
[330200431,1719131438093,-8355.461751,0.00011799,2]
[330200432,1719131438104,-37616.033428,0.00011799,2]
[330200433,1719131438125,-307.61404354,0.00011799,2]
[330200434,1719131438186,-713.78793473,0.00011799,2]
[330200450,1719131443092,-798.57501614,0.00011799,2]
[330200453,1719131454104,-306.07497288,0.00029089,120]
[330200454,1719131454126,-158.14383274,0.00029089,120]
[330200455,1719131454149,-289.66263863,0.00029089,120]
[330200456,1719131454175,-364.17880991,0.00029089,120]
[330200457,1719131454198,-541.781707,0.00029089,120]
[330200458,1719131454224,-1319.0,0.00029089,120]
[330200459,1719131454245,-970.29039024,0.00029089,120]
[330200460,1719131454268,-1260.60706922,0.00029089,120]
[330200461,1719131454289,-450.22655605,0.00029089,120]
[330200462,1719131454313,-532.58591394,0.00029089,120]
[330200463,1719131454334,-619.91570082,0.00029089,120]
[330200464,1719131454356,-190.74988241,0.00029089,120]
[330200465,1719131454377,-240.30531194,0.00029089,120]
[330200466,1719131454402,-465.85883768,0.00029089,120]
[330200467,1719131454424,-587.49477002,0.00029089,120]
[330200468,1719131454448,-628.6534854,0.00029089,120]
[330200469,1719131454470,-833.67927596,0.00029089,120]
[330200470,1719131454491,-585.74435344,0.00029089,120]
[330200471,1719131454513,-155.04649172,0.00029089,120]
[330200472,1719131544552,219.97,0.00010959,3]
[330200473,1719131559938,-169.68094133,0.00011046,2]
[330200474,1719131565871,167.63655556,0.00010959,2]
[330200475,1719131565893,95.64414512,0.00010959,2]
[330200476,1719131566632,71.99241044,0.00010959,2]
[330200477,1719131566654,99.21687691,0.00010959,2]
[330200478,1719131568744,68.41967865,0.00010959,2]
[330200479,1719131568766,167.63655556,0.00010959,2]
[330200480,1719131568788,167.63655556,0.00010959,2]
[330200481,1719131568809,167.63655556,0.00010959,2]
[330200482,1719131568831,167.63655556,0.00010959,2]
[330200483,1719131568853,167.63655556,0.00010959,2]
[330200484,1719131568878,167.63655556,0.00010959,2]
[330200485,1719131568903,167.63655556,0.00010959,2]
[330200486,1719131568928,167.63655556,0.00010959,2]
[330200487,1719131568951,11.4134691,0.00010959,2]
[330200488,1719131569001,155.25433982,0.00010959,2]
[330200489,1719131584764,150.0,0.00010959,2]
[330200490,1719131584791,5.0,0.00010959,2]
[330200491,1719131591276,1003.43002403,0.00017,30]
[330200492,1719131600754,150.0,0.00010959,2]
[330200493,1719131600792,5.0,0.00010959,2]
[330200494,1719131609655,150.0,0.00010959,2]
[330200495,1719131609676,50.10657976,0.00010959,2]
[330200496,1719131621739,1000.0,0.00014,7]
[330200497,1719131626666,150.0,0.00010959,2]
[330200498,1719131626688,150.0,0.00010959,2]
[330200499,1719131626710,150.0,0.00010959,2]
[330200500,1719131626731,150.0,0.00010959,2]
[330200501,1719131626754,150.0,0.00010959,2]
[330200502,1719131626777,150.0,0.00010959,2]
[330200503,1719131626798,150.0,0.00010959,2]
[330200504,1719131626820,150.0,0.00010959,2]
[330200505,1719131626842,150.0,0.00010959,2]
[330200506,1719131626864,20.83133205,0.00010959,2]
[330200507,1719131641991,150.0,0.00010959,2]
[330200508,1719131642014,150.0,0.00010959,2]
[330200509,1719131642038,150.0,0.00010959,2]
[330200510,1719131654875,263.28070068,0.00010959,2]
[330200511,1719131679360,947.28372815,0.00010959,2]
[330200512,1719131695760,150.0,0.00010959,2]
[330200513,1719131695784,5.0,0.00010959,2]
[330200514,1719131708543,150.0,0.00010959,2]
[330200515,1719131708564,140.31762553,0.00010959,2]
[330200516,1719131710968,9.68237447,0.00010959,2]
[330200517,1719131710994,145.31762553,0.00010959,2]
[330200518,1719131715897,150.0,0.00010959,2]
[330200519,1719131715919,150.0,0.00010959,2]
[330200520,1719131715940,31.92268897,0.00010959,2]
[330200521,1719131717665,150.0,0.00010959,2]
[330200522,1719131717685,150.0,0.00010959,2]
[330200523,1719131717707,150.0,0.00010959,2]
[330200524,1719131717728,150.0,0.00010959,2]
[330200525,1719131717748,150.0,0.00010959,2]
[330200526,1719131717769,150.0,0.00010959,2]
[330200527,1719131717790,150.0,0.00010959,2]
[330200528,1719131740998,150.0,0.00010959,2]
[330200529,1719131741022,150.0,0.00010959,2]
[330200530,1719131741044,150.0,0.00010959,2]
[330200531,1719131741065,150.0,0.00010959,2]
[330200532,1719131741086,150.0,0.00010959,2]
[330200533,1719131741107,6605.9155805,0.00010959,2]
[330200534,1719131745904,150.0,0.00010959,2]
[330200535,1719131745927,113.28070068,0.00010959,2]
[330200536,1719131755277,205.0,9.8e-05,2]
[330200537,1719131783338,150.0,0.00010959,2]
[330200538,1719131783362,150.0,0.00010959,2]
[330200539,1719131783383,150.0,0.00010959,2]
[330200540,1719131783403,150.0,0.00010959,2]
[330200541,1719131783426,150.0,0.00010959,2]
[330200542,1719131783448,39.4031068,0.00010959,2]
[330200543,1719131789899,150.0,0.00010959,2]
[330200544,1719131789922,141.1,0.00010959,2]
[330200545,1719131816544,150.0,9.8e-05,2]
[330200546,1719131816565,199.9771048,9.8e-05,2]
[330200547,1719131816585,94.09349862,9.8e-05,2]
[330200548,1719131845881,263.28070068,9.8e-05,2]
[330200549,1719131874164,150.0,0.00010947,2]
[330200550,1719131874187,100.94038322,0.00010947,2]
[330200552,1719131905346,150.0,0.00010947,2]
[330200553,1719131905367,150.0,0.00010947,2]
[330200554,1719131905392,111.27901864,0.00010947,2]
[330200555,1719131905796,150.0,0.00010947,2]
[330200556,1719131905818,46.6281065,0.00010947,2]
[330200557,1719131932082,150.0,0.00010181,2]
[330200558,1719131932110,150.0,0.00010181,2]
[330200559,1719131932138,150.0,0.00010181,2]
[330200560,1719131932167,150.0,0.00010181,2]
[330200561,1719131932195,150.0,0.00010181,2]
[330200562,1719131932222,110.03,0.00010181,2]
[330200563,1719131945879,150.0,0.00010947,2]
[330200564,1719131945901,113.28070068,0.00010947,2]
[330200565,1719131988007,150.0,0.00010181,2]
[330200566,1719131988030,150.0,0.00010181,2]
[330200567,1719131988052,150.0,0.00010181,2]
[330200568,1719131988074,150.0,0.00010181,2]
[330200569,1719131988095,150.0,0.00010181,2]
[330200570,1719131988117,36.64372928,0.00010181,2]
[330200571,1719132021353,150.0,0.00010181,2]
[330200572,1719132021378,150.0,0.00010181,2]
[330200573,1719132021407,111.27901864,0.00010181,2]
[330200574,1719132031896,150.0,0.00010181,2]
[330200575,1719132031920,150.0,0.00010181,2]
[330200576,1719132031942,111.30739176,0.00010181,2]
[330200577,1719132103779,150.0,0.00010959,2]
[330200578,1719132103800,150.0,0.00010959,2]